[Event "Titled Tuesday Blitz May 2 Early 2023"]
[White "Seo, Jung Min"]
[Black "Budrewicz, Krzysztof"]
[WhiteFideId "1734687"]
[BlackFideId "1127950"]
[WhiteElo "2468"]
[BlackElo "2230"]
[Result "1-0"]
[Round "07"]
[TimeControl "180+2"]
[Date "2023.05.03"]
[WhiteClock "0:00:00"]
[BlackClock "0:00:00"]

1. c4 {[%clk 0:00:01]}  Nf6 {[%clk 0:00:01]} 2. g3 {[%clk 0:00:01]}  g6 {[%clk 0:00:01]} 3. Bg2 {[%clk 0:00:01]}  Bg7 {[%clk 0:00:01]} 4. d4 {[%clk 0:00:01]}  O-O {[%clk 0:00:01]} 5. Nf3 {[%clk 0:00:01]}  d6 {[%clk 0:00:01]} 6. O-O {[%clk 0:00:01]}  Nbd7 {[%clk 0:00:01]} 7. Nc3 {[%clk 0:00:01]}  e5 {[%clk 0:00:01]} 8. e4 {[%clk 0:00:01]}  c6 {[%clk 0:00:01]} 9. d5 {[%clk 0:00:01]}  cxd5 {[%clk 0:00:01]} 10. cxd5 {[%clk 0:00:01]}  a6 {[%clk 0:00:01]} 11. a4 {[%clk 0:00:01]}  Nc5 {[%clk 0:00:01]} 12. Ne1 {[%clk 0:00:01]}  a5 {[%clk 0:00:01]} 13. Be3 {[%clk 0:00:01]}  b6 {[%clk 0:00:01]} 14. f3 {[%clk 0:00:01]}  Ne8 {[%clk 0:00:01]} 15. Rf2 {[%clk 0:00:01]}  f5 {[%clk 0:00:01]} 16. exf5 {[%clk 0:00:01]}  gxf5 {[%clk 0:00:01]} 17. f4 {[%clk 0:00:01]}  e4 {[%clk 0:00:01]} 18. Rb1 {[%clk 0:00:01]}  Ba6 {[%clk 0:00:01]} 19. Nb5 {[%clk 0:00:01]}  Bxb5 {[%clk 0:00:01]} 20. axb5 {[%clk 0:00:01]}  Rc8 {[%clk 0:00:01]} 21. Bf1 {[%clk 0:00:01]}  Nf6 {[%clk 0:00:01]} 22. h3 {[%clk 0:00:01]}  Qe8 {[%clk 0:00:01]} 23. Nc2 {[%clk 0:00:01]}  Qf7 {[%clk 0:00:01]} 24. Bc4 {[%clk 0:00:01]}  Kh8 {[%clk 0:00:01]} 25. Rd2 {[%clk 0:00:00]}  Rg8 {[%clk 0:00:01]} 26. Kh2 {[%clk 0:00:00]}  Nh5 {[%clk 0:00:01]} 27. Rg2 {[%clk 0:00:00]}  Bf6 {[%clk 0:00:01]} 28. Nd4 {[%clk 0:00:00]}  Qg6 {[%clk 0:00:01]} 29. Nc6 {[%clk 0:00:00]}  h6 {[%clk 0:00:01]} 30. g4 {[%clk 0:00:00]}  fxg4 {[%clk 0:00:01]} 31. hxg4 {[%clk 0:00:00]}  Ng7 {[%clk 0:00:01]} 32. Qe2 {[%clk 0:00:00]}  Nd3 {[%clk 0:00:01]} 33. b3 {[%clk 0:00:00]}  Rce8 {[%clk 0:00:01]} 34. Rd1 {[%clk 0:00:00]}  Bh4 {[%clk 0:00:00]} 35. Bxd3 {[%clk 0:00:00]}  exd3 {[%clk 0:00:00]} 36. Qxd3 {[%clk 0:00:00]}  Qf7 {[%clk 0:00:00]} 37. Rf1 {[%clk 0:00:00]}  Bf6 {[%clk 0:00:00]} 38. Bxb6 {[%clk 0:00:00]}  Qd7 {[%clk 0:00:00]} 39. Bxa5 {[%clk 0:00:00]}  Ra8 {[%clk 0:00:00]} 40. Qh3 {[%clk 0:00:00]}  Kh7 {[%clk 0:00:00]} 41. g5 {[%clk 0:00:00]}  Qxh3+ {[%clk 0:00:00]} 42. Kxh3 {[%clk 0:00:00]}  hxg5 {[%clk 0:00:00]} 43. fxg5 {[%clk 0:00:00]}  Be5 {[%clk 0:00:00]} 44. Kg4 {[%clk 0:00:00]}  Kg6 {[%clk 0:00:00]} 45. Nxe5+ {[%clk 0:00:00]}  dxe5 {[%clk 0:00:00]} 46. Rf6+ {[%clk 0:00:00]}  Kh7 {[%clk 0:00:00]} 47. Rh2+ {[%clk 0:00:00]}  Nh5 {[%clk 0:00:00]} 48. Rxh5+ {[%clk 0:00:00]}  Kg7 {[%clk 0:00:00]} 49. Bc3 {[%clk 0:00:00]} 1-0


[Site "https://www.chess.com"]

[Event "Titled Tuesday Blitz May 2 Early 2023"]
[White "Martinez Ramirez, Lennis"]
[Black "Sousa, Andre Ventura"]
[WhiteFideId "3509079"]
[BlackFideId "1917617"]
[WhiteElo "2410"]
[BlackElo "2348"]
[Result "1-0"]
[Round "07"]
[TimeControl "180+2"]
[Date "2023.05.03"]
[WhiteClock "0:00:00"]
[BlackClock "0:00:00"]

1. c4 {[%clk 0:00:01]}  e6 {[%clk 0:00:01]} 2. Nc3 {[%clk 0:00:01]}  a6 {[%clk 0:00:01]} 3. d4 {[%clk 0:00:01]}  d5 {[%clk 0:00:01]} 4. cxd5 {[%clk 0:00:01]}  exd5 {[%clk 0:00:01]} 5. Bf4 {[%clk 0:00:01]}  Nf6 {[%clk 0:00:01]} 6. Qc2 {[%clk 0:00:01]}  Bd6 {[%clk 0:00:01]} 7. Bxd6 {[%clk 0:00:01]}  Qxd6 {[%clk 0:00:01]} 8. e3 {[%clk 0:00:01]}  O-O {[%clk 0:00:01]} 9. Bd3 {[%clk 0:00:01]}  Re8 {[%clk 0:00:01]} 10. Nge2 {[%clk 0:00:01]}  Nbd7 {[%clk 0:00:01]} 11. O-O {[%clk 0:00:01]}  Nf8 {[%clk 0:00:01]} 12. Ng3 {[%clk 0:00:01]}  c6 {[%clk 0:00:01]} 13. Rab1 {[%clk 0:00:00]}  a5 {[%clk 0:00:01]} 14. a3 {[%clk 0:00:00]}  h5 {[%clk 0:00:01]} 15. h3 {[%clk 0:00:00]}  h4 {[%clk 0:00:01]} 16. Nf5 {[%clk 0:00:00]}  Bxf5 {[%clk 0:00:01]} 17. Bxf5 {[%clk 0:00:00]}  Ne6 {[%clk 0:00:01]} 18. Rfc1 {[%clk 0:00:00]}  Ng5 {[%clk 0:00:01]} 19. b4 {[%clk 0:00:00]}  axb4 {[%clk 0:00:01]} 20. axb4 {[%clk 0:00:00]}  Nfe4 {[%clk 0:00:01]} 21. Nxe4 {[%clk 0:00:00]}  dxe4 {[%clk 0:00:01]} 22. b5 {[%clk 0:00:00]}  g6 {[%clk 0:00:00]} 23. Bg4 {[%clk 0:00:00]}  f5 {[%clk 0:00:00]} 24. Be2 {[%clk 0:00:00]}  Rac8 {[%clk 0:00:00]} 25. bxc6 {[%clk 0:00:00]}  bxc6 {[%clk 0:00:00]} 26. Rb6 {[%clk 0:00:00]}  f4 {[%clk 0:00:00]} 27. Rxc6 {[%clk 0:00:00]}  Rxc6 {[%clk 0:00:00]} 28. Qxc6 {[%clk 0:00:00]}  Qxc6 {[%clk 0:00:00]} 29. Rxc6 {[%clk 0:00:00]}  f3 {[%clk 0:00:00]} 30. Bb5 {[%clk 0:00:00]}  Kf7 {[%clk 0:00:00]} 31. Rc5 {[%clk 0:00:00]}  Ra8 {[%clk 0:00:00]} 32. Rxg5 {[%clk 0:00:00]}  Ra1+ {[%clk 0:00:00]} 33. Bf1 {[%clk 0:00:00]} 1-0


[Site "https://www.chess.com"]

[Event "Titled Tuesday Blitz May 2 Early 2023"]
[White "Vlassov, Nikolai"]
[Black "Dimitrov, Atanas"]
[WhiteFideId "4103360"]
[BlackFideId "2901315"]
[WhiteElo "2324"]
[BlackElo "2269"]
[Result "1-0"]
[Round "07"]
[TimeControl "180+2"]
[Date "2023.05.03"]
[WhiteClock "0:00:00"]
[BlackClock "0:00:00"]

1. e4 {[%clk 0:00:01]}  c5 {[%clk 0:00:01]} 2. c3 {[%clk 0:00:01]}  Nc6 {[%clk 0:00:01]} 3. d4 {[%clk 0:00:01]}  cxd4 {[%clk 0:00:01]} 4. cxd4 {[%clk 0:00:01]}  d6 {[%clk 0:00:01]} 5. d5 {[%clk 0:00:01]}  Nb8 {[%clk 0:00:01]} 6. f4 {[%clk 0:00:01]}  g6 {[%clk 0:00:01]} 7. Qd4 {[%clk 0:00:01]}  Nf6 {[%clk 0:00:01]} 8. Nc3 {[%clk 0:00:01]}  Bg7 {[%clk 0:00:01]} 9. e5 {[%clk 0:00:01]}  dxe5 {[%clk 0:00:01]} 10. fxe5 {[%clk 0:00:01]}  Nfd7 {[%clk 0:00:01]} 11. Nf3 {[%clk 0:00:01]}  O-O {[%clk 0:00:01]} 12. Bc4 {[%clk 0:00:01]}  Nb6 {[%clk 0:00:01]} 13. Bb3 {[%clk 0:00:01]}  Kh8 {[%clk 0:00:01]} 14. O-O {[%clk 0:00:01]}  f6 {[%clk 0:00:01]} 15. Bf4 {[%clk 0:00:01]}  Bg4 {[%clk 0:00:01]} 16. Rad1 {[%clk 0:00:01]}  Na6 {[%clk 0:00:01]} 17. e6 {[%clk 0:00:01]}  Qc8 {[%clk 0:00:00]} 18. d6 {[%clk 0:00:00]}  Bxe6 {[%clk 0:00:00]} 19. dxe7 {[%clk 0:00:00]}  Re8 {[%clk 0:00:00]} 20. Bxe6 {[%clk 0:00:00]}  Qxe6 {[%clk 0:00:00]} 21. Rfe1 {[%clk 0:00:00]}  Qf7 {[%clk 0:00:00]} 22. Bd6 {[%clk 0:00:00]}  Nc4 {[%clk 0:00:00]} 23. Nb5 {[%clk 0:00:00]}  f5 {[%clk 0:00:00]} 24. Qh4 {[%clk 0:00:00]}  Bf6 {[%clk 0:00:00]} 25. Ng5 {[%clk 0:00:00]}  Qg8 {[%clk 0:00:00]} 26. Re6 {[%clk 0:00:00]}  Bxg5 {[%clk 0:00:00]} 27. Qxc4 {[%clk 0:00:00]}  Bh6 {[%clk 0:00:00]} 28. Rde1 {[%clk 0:00:00]}  Bg7 {[%clk 0:00:00]} 29. Qh4 {[%clk 0:00:00]}  Qf7 {[%clk 0:00:00]} 30. Ba3 {[%clk 0:00:00]}  Rg8 {[%clk 0:00:00]} 31. Nd6 {[%clk 0:00:00]}  Qe8 {[%clk 0:00:00]} 32. Nxe8 {[%clk 0:00:00]}  Raxe8 {[%clk 0:00:00]} 33. Rd1 {[%clk 0:00:00]}  Nc7 {[%clk 0:00:00]} 34. Rxg6 {[%clk 0:00:00]}  Nb5 {[%clk 0:00:00]} 35. Rxg7 {[%clk 0:00:00]}  Rxg7 {[%clk 0:00:00]} 36. Rd8 {[%clk 0:00:00]}  Nc7 {[%clk 0:00:00]} 37. Qf6 {[%clk 0:00:00]}  Kg8 {[%clk 0:00:00]} 38. b3 {[%clk 0:00:00]}  Rf7 {[%clk 0:00:00]} 39. Qg5+ {[%clk 0:00:00]}  Rg7 {[%clk 0:00:00]} 40. Qxf5 {[%clk 0:00:00]}  Rf7 {[%clk 0:00:00]} 41. Qg4+ {[%clk 0:00:00]}  Rg7 {[%clk 0:00:00]} 42. Qc4+ {[%clk 0:00:00]} 1-0


[Site "https://www.chess.com"]

[Event "Titled Tuesday Blitz May 2 Early 2023"]
[White "Piesik, Piotr"]
[Black "Shukhman, Anna"]
[WhiteFideId "1136194"]
[BlackFideId "54180058"]
[WhiteElo "2299"]
[BlackElo "2125"]
[Result "1-0"]
[Round "07"]
[TimeControl "180+2"]
[Date "2023.05.03"]
[WhiteClock "0:00:00"]
[BlackClock "0:00:00"]

1. Nf3 {[%clk 0:00:01]}  Nf6 {[%clk 0:00:01]} 2. g3 {[%clk 0:00:01]}  g6 {[%clk 0:00:01]} 3. Bg2 {[%clk 0:00:01]}  Bg7 {[%clk 0:00:01]} 4. O-O {[%clk 0:00:01]}  O-O {[%clk 0:00:01]} 5. d4 {[%clk 0:00:01]}  d6 {[%clk 0:00:01]} 6. Nbd2 {[%clk 0:00:01]}  c5 {[%clk 0:00:01]} 7. dxc5 {[%clk 0:00:01]}  dxc5 {[%clk 0:00:01]} 8. e4 {[%clk 0:00:01]}  Nc6 {[%clk 0:00:01]} 9. c3 {[%clk 0:00:01]}  Be6 {[%clk 0:00:01]} 10. Qe2 {[%clk 0:00:01]}  Qc7 {[%clk 0:00:01]} 11. a4 {[%clk 0:00:01]}  Rfd8 {[%clk 0:00:01]} 12. Nc4 {[%clk 0:00:01]}  Bxc4 {[%clk 0:00:01]} 13. Qxc4 {[%clk 0:00:01]}  b6 {[%clk 0:00:01]} 14. Bf4 {[%clk 0:00:01]}  e5 {[%clk 0:00:01]} 15. Bg5 {[%clk 0:00:01]}  h6 {[%clk 0:00:01]} 16. Bxf6 {[%clk 0:00:01]}  Bxf6 {[%clk 0:00:01]} 17. Rfd1 {[%clk 0:00:01]}  Ne7 {[%clk 0:00:01]} 18. Bf1 {[%clk 0:00:01]}  Rd6 {[%clk 0:00:01]} 19. Rxd6 {[%clk 0:00:01]}  Qxd6 {[%clk 0:00:01]} 20. Be2 {[%clk 0:00:01]}  Rd8 {[%clk 0:00:01]} 21. Rd1 {[%clk 0:00:01]}  Qc7 {[%clk 0:00:01]} 22. h4 {[%clk 0:00:01]}  Rxd1+ {[%clk 0:00:01]} 23. Bxd1 {[%clk 0:00:01]}  Qd7 {[%clk 0:00:01]} 24. Bb3 {[%clk 0:00:01]}  Nc6 {[%clk 0:00:01]} 25. Qb5 {[%clk 0:00:01]}  Qc8 {[%clk 0:00:01]} 26. Bd5 {[%clk 0:00:01]}  Ne7 {[%clk 0:00:00]} 27. Bc4 {[%clk 0:00:01]}  Kg7 {[%clk 0:00:00]} 28. Kg2 {[%clk 0:00:01]}  h5 {[%clk 0:00:00]} 29. Qb3 {[%clk 0:00:01]}  Qe8 {[%clk 0:00:00]} 30. Nd2 {[%clk 0:00:01]}  Nc8 {[%clk 0:00:00]} 31. Bd5 {[%clk 0:00:01]}  Ne7 {[%clk 0:00:00]} 32. Bc4 {[%clk 0:00:01]}  Nc8 {[%clk 0:00:00]} 33. Nf1 {[%clk 0:00:01]}  Nd6 {[%clk 0:00:00]} 34. Bd5 {[%clk 0:00:01]}  Bd8 {[%clk 0:00:00]} 35. Ne3 {[%clk 0:00:01]}  a6 {[%clk 0:00:00]} 36. Qa3 {[%clk 0:00:01]}  f5 {[%clk 0:00:00]} 37. a5 {[%clk 0:00:01]}  f4 {[%clk 0:00:00]} 38. Nf1 {[%clk 0:00:01]}  bxa5 {[%clk 0:00:00]} 39. Qxc5 {[%clk 0:00:01]}  Qd7 {[%clk 0:00:00]} 40. Nd2 {[%clk 0:00:00]}  fxg3 {[%clk 0:00:00]} 41. fxg3 {[%clk 0:00:00]}  Be7 {[%clk 0:00:00]} 42. Qxa5 {[%clk 0:00:00]}  Qg4 {[%clk 0:00:00]} 43. Qxa6 {[%clk 0:00:00]}  Bxh4 {[%clk 0:00:00]} 44. Qa7+ {[%clk 0:00:00]}  Kh6 {[%clk 0:00:00]} 45. Qe3+ {[%clk 0:00:00]}  Bg5 {[%clk 0:00:00]} 46. Qf2 {[%clk 0:00:00]}  h4 {[%clk 0:00:00]} 47. Qf8+ {[%clk 0:00:00]}  Kh5 {[%clk 0:00:00]} 48. Qh8+ {[%clk 0:00:00]}  Bh6 {[%clk 0:00:00]} 49. Qxe5+ {[%clk 0:00:00]}  g5 {[%clk 0:00:00]} 50. Qe8+ {[%clk 0:00:00]}  Nxe8 {[%clk 0:00:00]} 51. Bf7# {[%clk 0:00:00]} 1-0


[Site "https://www.chess.com"]

[Event "Titled Tuesday Blitz May 2 Early 2023"]
[White "Jeet, Jain"]
[Black "Stanojevic, Ilija"]
[WhiteFideId "5073022"]
[BlackFideId "959995"]
[WhiteElo "2067"]
[BlackElo "2138"]
[Result "1-0"]
[Round "07"]
[TimeControl "180+2"]
[Date "2023.05.03"]
[WhiteClock "0:00:01"]
[BlackClock "0:00:00"]

1. d4 {[%clk 0:00:01]}  e6 {[%clk 0:00:01]} 2. Nf3 {[%clk 0:00:01]}  Nf6 {[%clk 0:00:01]} 3. Bf4 {[%clk 0:00:01]}  b6 {[%clk 0:00:01]} 4. e3 {[%clk 0:00:01]}  Bb7 {[%clk 0:00:01]} 5. Bd3 {[%clk 0:00:01]}  d6 {[%clk 0:00:01]} 6. c4 {[%clk 0:00:01]}  Nbd7 {[%clk 0:00:01]} 7. Nc3 {[%clk 0:00:01]}  Qe7 {[%clk 0:00:01]} 8. Bg3 {[%clk 0:00:01]}  e5 {[%clk 0:00:01]} 9. Be2 {[%clk 0:00:01]}  e4 {[%clk 0:00:01]} 10. Nd2 {[%clk 0:00:01]}  h5 {[%clk 0:00:00]} 11. h4 {[%clk 0:00:01]}  a6 {[%clk 0:00:00]} 12. Rc1 {[%clk 0:00:01]}  c5 {[%clk 0:00:00]} 13. Nb3 {[%clk 0:00:01]}  g6 {[%clk 0:00:00]} 14. a4 {[%clk 0:00:01]}  Bg7 {[%clk 0:00:00]} 15. a5 {[%clk 0:00:01]}  d5 {[%clk 0:00:00]} 16. axb6 {[%clk 0:00:01]}  dxc4 {[%clk 0:00:00]} 17. Na5 {[%clk 0:00:01]}  Nxb6 {[%clk 0:00:00]} 18. dxc5 {[%clk 0:00:01]}  Rd8 {[%clk 0:00:00]} 19. Bd6 {[%clk 0:00:01]}  Qd7 {[%clk 0:00:00]} 20. cxb6 {[%clk 0:00:01]}  Qxd6 {[%clk 0:00:00]} 21. Nxb7 {[%clk 0:00:01]}  Qxb6 {[%clk 0:00:00]} 22. Qxd8+ {[%clk 0:00:01]}  Qxd8 {[%clk 0:00:00]} 23. Nxd8 {[%clk 0:00:01]}  Kxd8 {[%clk 0:00:00]} 24. Bxc4 {[%clk 0:00:01]} 1-0


[Site "https://www.chess.com"]

[Event "Titled Tuesday Blitz May 2 Early 2023"]
[White "Tasev, Dejan"]
[Black "Kukula, Pawel"]
[WhiteFideId "936618"]
[BlackFideId "1115081"]
[WhiteElo "2244"]
[BlackElo "2012"]
[Result "1-0"]
[Round "07"]
[TimeControl "180+2"]
[Date "2023.05.03"]
[WhiteClock "0:00:00"]
[BlackClock "0:00:00"]

1. e4 {[%clk 0:00:01]}  Nc6 {[%clk 0:00:01]} 2. Nf3 {[%clk 0:00:01]}  d6 {[%clk 0:00:01]} 3. d4 {[%clk 0:00:01]}  Nf6 {[%clk 0:00:01]} 4. Nc3 {[%clk 0:00:01]}  Bg4 {[%clk 0:00:01]} 5. Be2 {[%clk 0:00:01]}  e6 {[%clk 0:00:01]} 6. Be3 {[%clk 0:00:01]}  Be7 {[%clk 0:00:01]} 7. Qd2 {[%clk 0:00:01]}  O-O {[%clk 0:00:01]} 8. h3 {[%clk 0:00:01]}  Bh5 {[%clk 0:00:01]} 9. a3 {[%clk 0:00:01]}  d5 {[%clk 0:00:01]} 10. e5 {[%clk 0:00:01]}  Ne4 {[%clk 0:00:01]} 11. Nxe4 {[%clk 0:00:01]}  dxe4 {[%clk 0:00:01]} 12. Ng1 {[%clk 0:00:01]}  Bg6 {[%clk 0:00:01]} 13. O-O-O {[%clk 0:00:01]}  a5 {[%clk 0:00:01]} 14. h4 {[%clk 0:00:01]}  f5 {[%clk 0:00:01]} 15. g3 {[%clk 0:00:01]}  Bf7 {[%clk 0:00:01]} 16. Nh3 {[%clk 0:00:01]}  Qd7 {[%clk 0:00:01]} 17. Nf4 {[%clk 0:00:01]}  Rfd8 {[%clk 0:00:01]} 18. Bb5 {[%clk 0:00:00]}  a4 {[%clk 0:00:01]} 19. Qc3 {[%clk 0:00:00]}  Bf8 {[%clk 0:00:00]} 20. h5 {[%clk 0:00:00]}  Be8 {[%clk 0:00:00]} 21. g4 {[%clk 0:00:00]}  fxg4 {[%clk 0:00:00]} 22. Rhg1 {[%clk 0:00:00]}  Qf7 {[%clk 0:00:00]} 23. Be2 {[%clk 0:00:00]}  Ne7 {[%clk 0:00:00]} 24. Bxg4 {[%clk 0:00:00]}  Nf5 {[%clk 0:00:00]} 25. d5 {[%clk 0:00:00]}  exd5 {[%clk 0:00:00]} 26. e6 {[%clk 0:00:00]}  Qe7 {[%clk 0:00:00]} 27. Bxf5 {[%clk 0:00:00]}  c6 {[%clk 0:00:00]} 28. Rg4 {[%clk 0:00:00]}  h6 {[%clk 0:00:00]} 29. Rdg1 {[%clk 0:00:00]}  Kh8 {[%clk 0:00:00]} 30. Bd4 {[%clk 0:00:00]}  c5 {[%clk 0:00:00]} 31. Bxg7+ {[%clk 0:00:00]}  Bxg7 {[%clk 0:00:00]} 32. Rxg7 {[%clk 0:00:00]}  d4 {[%clk 0:00:00]} 33. Rg8# {[%clk 0:00:00]} 1-0


[Site "https://www.chess.com"]

[Event "Titled Tuesday Blitz May 2 Early 2023"]
[White "Gontcharov, Vladislav"]
[Black "Gutkin, Ilya"]
[WhiteFideId "4123492"]
[BlackFideId "16203470"]
[WhiteElo "2420"]
[BlackElo "2265"]
[Result "1-0"]
[Round "07"]
[TimeControl "180+2"]
[Date "2023.05.03"]
[WhiteClock "0:00:00"]
[BlackClock "0:00:00"]

1. e4 {[%clk 0:00:01]}  e6 {[%clk 0:00:01]} 2. d4 {[%clk 0:00:01]}  d5 {[%clk 0:00:01]} 3. Nd2 {[%clk 0:00:01]}  c5 {[%clk 0:00:01]} 4. exd5 {[%clk 0:00:01]}  Qxd5 {[%clk 0:00:01]} 5. Ngf3 {[%clk 0:00:01]}  cxd4 {[%clk 0:00:01]} 6. Bc4 {[%clk 0:00:01]}  Qd7 {[%clk 0:00:01]} 7. O-O {[%clk 0:00:01]}  Nc6 {[%clk 0:00:01]} 8. Nb3 {[%clk 0:00:01]}  a6 {[%clk 0:00:01]} 9. Nbxd4 {[%clk 0:00:01]}  Nxd4 {[%clk 0:00:01]} 10. Nxd4 {[%clk 0:00:01]}  Bc5 {[%clk 0:00:01]} 11. Be3 {[%clk 0:00:01]}  e5 {[%clk 0:00:01]} 12. Nf5 {[%clk 0:00:01]}  Qxd1 {[%clk 0:00:01]} 13. Nxg7+ {[%clk 0:00:01]}  Kf8 {[%clk 0:00:01]} 14. Raxd1 {[%clk 0:00:01]}  Kxg7 {[%clk 0:00:01]} 15. Bxc5 {[%clk 0:00:00]}  Nf6 {[%clk 0:00:01]} 16. Bd6 {[%clk 0:00:00]}  Re8 {[%clk 0:00:01]} 17. Rfe1 {[%clk 0:00:00]}  e4 {[%clk 0:00:01]} 18. Bb4 {[%clk 0:00:00]}  Bf5 {[%clk 0:00:01]} 19. Bc3 {[%clk 0:00:00]}  Rac8 {[%clk 0:00:01]} 20. Bb3 {[%clk 0:00:00]}  Red8 {[%clk 0:00:01]} 21. h3 {[%clk 0:00:00]}  h5 {[%clk 0:00:01]} 22. Kf1 {[%clk 0:00:00]}  h4 {[%clk 0:00:00]} 23. Ke2 {[%clk 0:00:00]}  Bg6 {[%clk 0:00:00]} 24. g4 {[%clk 0:00:00]}  hxg3 {[%clk 0:00:00]} 25. fxg3 {[%clk 0:00:00]}  Rxd1 {[%clk 0:00:00]} 26. Rxd1 {[%clk 0:00:00]}  Rc6 {[%clk 0:00:00]} 27. Rf1 {[%clk 0:00:00]}  Bh7 {[%clk 0:00:00]} 28. g4 {[%clk 0:00:00]}  Kg6 {[%clk 0:00:00]} 29. Ke3 {[%clk 0:00:00]}  a5 {[%clk 0:00:00]} 30. Rxf6+ {[%clk 0:00:00]}  Rxf6 {[%clk 0:00:00]} 31. Bxf6 {[%clk 0:00:00]}  Kxf6 {[%clk 0:00:00]} 32. Bd5 {[%clk 0:00:00]}  Ke5 {[%clk 0:00:00]} 33. Bxb7 {[%clk 0:00:00]}  f5 {[%clk 0:00:00]} 34. gxf5 {[%clk 0:00:00]}  Bxf5 {[%clk 0:00:00]} 35. h4 {[%clk 0:00:00]}  Bg6 {[%clk 0:00:00]} 36. Bc6 {[%clk 0:00:00]}  Bf5 {[%clk 0:00:00]} 37. c3 {[%clk 0:00:00]}  Bg6 {[%clk 0:00:00]} 38. b4 {[%clk 0:00:00]}  axb4 {[%clk 0:00:00]} 39. cxb4 {[%clk 0:00:00]}  Bf5 {[%clk 0:00:00]} 40. a4 {[%clk 0:00:00]}  Bg6 {[%clk 0:00:00]} 41. a5 {[%clk 0:00:00]}  Kd6 {[%clk 0:00:00]} 42. Bxe4 {[%clk 0:00:00]} 1-0


[Site "https://www.chess.com"]

[Event "Titled Tuesday Blitz May 2 Early 2023"]
[White "Goswami, Vedant"]
[Black "Ezat, Mohamed"]
[WhiteFideId "5003725"]
[BlackFideId "10600906"]
[WhiteElo "2011"]
[BlackElo "2386"]
[Result "1/2-1/2"]
[Round "07"]
[TimeControl "180+2"]
[Date "2023.05.03"]
[WhiteClock "0:00:00"]
[BlackClock "0:00:00"]

1. b3 {[%clk 0:00:01]}  d6 {[%clk 0:00:01]} 2. d4 {[%clk 0:00:01]}  Nf6 {[%clk 0:00:01]} 3. Bb2 {[%clk 0:00:01]}  g6 {[%clk 0:00:01]} 4. Nf3 {[%clk 0:00:01]}  Bg7 {[%clk 0:00:01]} 5. Nbd2 {[%clk 0:00:01]}  O-O {[%clk 0:00:01]} 6. e3 {[%clk 0:00:01]}  Nc6 {[%clk 0:00:01]} 7. c4 {[%clk 0:00:01]}  e5 {[%clk 0:00:01]} 8. dxe5 {[%clk 0:00:01]}  Nd7 {[%clk 0:00:01]} 9. Be2 {[%clk 0:00:01]}  Ndxe5 {[%clk 0:00:01]} 10. Nxe5 {[%clk 0:00:01]}  Nxe5 {[%clk 0:00:01]} 11. Bd4 {[%clk 0:00:01]}  a5 {[%clk 0:00:01]} 12. O-O {[%clk 0:00:01]}  a4 {[%clk 0:00:01]} 13. c5 {[%clk 0:00:00]}  Re8 {[%clk 0:00:01]} 14. cxd6 {[%clk 0:00:00]}  Qxd6 {[%clk 0:00:01]} 15. Rc1 {[%clk 0:00:00]}  axb3 {[%clk 0:00:01]} 16. Qxb3 {[%clk 0:00:00]}  Be6 {[%clk 0:00:01]} 17. Qb2 {[%clk 0:00:00]}  Rxa2 {[%clk 0:00:01]} 18. Qc3 {[%clk 0:00:00]}  c5 {[%clk 0:00:01]} 19. Bxe5 {[%clk 0:00:00]}  Bxe5 {[%clk 0:00:01]} 20. Ne4 {[%clk 0:00:00]}  Bxh2+ {[%clk 0:00:00]} 21. Kh1 {[%clk 0:00:00]}  Qb8 {[%clk 0:00:00]} 22. Nf6+ {[%clk 0:00:00]}  Kh8 {[%clk 0:00:00]} 23. Nxe8+ {[%clk 0:00:00]}  Be5 {[%clk 0:00:00]} 24. Qxc5 {[%clk 0:00:00]}  Kg8 {[%clk 0:00:00]} 25. Nc7 {[%clk 0:00:00]}  Bxc7 {[%clk 0:00:00]} 26. Qxc7 {[%clk 0:00:00]}  Qxc7 {[%clk 0:00:00]} 27. Rxc7 {[%clk 0:00:00]}  Rxe2 {[%clk 0:00:00]} 28. Rxb7 {[%clk 0:00:00]}  Bc4 {[%clk 0:00:00]} 29. Kg1 {[%clk 0:00:00]}  Rc2 {[%clk 0:00:00]} 30. Rfb1 {[%clk 0:00:00]}  Be6 {[%clk 0:00:00]} 31. Rb8+ {[%clk 0:00:00]}  Kg7 {[%clk 0:00:00]} 32. R8b2 {[%clk 0:00:00]}  Rc5 {[%clk 0:00:00]} 33. Rb5 {[%clk 0:00:00]}  Rc3 {[%clk 0:00:00]} 34. R5b2 {[%clk 0:00:00]}  h5 {[%clk 0:00:00]} 35. Re1 {[%clk 0:00:00]}  Rc5 {[%clk 0:00:00]} 36. Rd2 {[%clk 0:00:00]}  Rg5 {[%clk 0:00:00]} 37. Kf1 {[%clk 0:00:00]}  Bc4+ {[%clk 0:00:00]} 38. Kg1 {[%clk 0:00:00]}  Be6 {[%clk 0:00:00]} 39. Kh2 {[%clk 0:00:00]}  h4 {[%clk 0:00:00]} 40. f3 {[%clk 0:00:00]}  Rc5 {[%clk 0:00:00]} 41. e4 {[%clk 0:00:00]}  Rc3 {[%clk 0:00:00]} 42. Red1 {[%clk 0:00:00]}  h3 {[%clk 0:00:00]} 43. Rd3 {[%clk 0:00:00]}  Rc2 {[%clk 0:00:00]} 44. R1d2 {[%clk 0:00:00]}  Rc1 {[%clk 0:00:00]} 45. gxh3 {[%clk 0:00:00]}  Rf1 {[%clk 0:00:00]} 46. Kg3 {[%clk 0:00:00]}  Rh1 {[%clk 0:00:00]} 47. Rh2 {[%clk 0:00:00]}  Rg1+ {[%clk 0:00:00]} 48. Rg2 {[%clk 0:00:00]}  Rf1 {[%clk 0:00:00]} 49. Re3 {[%clk 0:00:00]}  Rh1 {[%clk 0:00:00]} 50. f4 {[%clk 0:00:00]}  Rxh3+ {[%clk 0:00:00]} 51. Kf2 {[%clk 0:00:00]}  Rh1 {[%clk 0:00:00]} 52. Rf3 {[%clk 0:00:00]}  Bc4 {[%clk 0:00:00]} 53. f5 {[%clk 0:00:00]}  Rf1+ {[%clk 0:00:00]} 54. Ke3 {[%clk 0:00:00]}  Re1+ {[%clk 0:00:00]} 55. Kf4 {[%clk 0:00:00]}  Bb5 {[%clk 0:00:00]} 56. fxg6 {[%clk 0:00:00]}  fxg6 {[%clk 0:00:00]} 57. Rfg3 {[%clk 0:00:00]}  Be8 {[%clk 0:00:00]} 58. Rg5 {[%clk 0:00:00]}  Bf7 {[%clk 0:00:00]} 59. Rd5 {[%clk 0:00:00]}  Bxd5 {[%clk 0:00:00]} 60. exd5 {[%clk 0:00:00]}  Kf6 {[%clk 0:00:00]} 61. Rd2 {[%clk 0:00:00]}  g5+ {[%clk 0:00:00]} 62. Kg4 {[%clk 0:00:00]}  Rg1+ {[%clk 0:00:00]} 63. Kf3 {[%clk 0:00:00]}  Ke7 {[%clk 0:00:00]} 64. d6+ {[%clk 0:00:00]}  Kd7 {[%clk 0:00:00]} 65. Kf2 {[%clk 0:00:00]}  Rg4 {[%clk 0:00:00]} 66. Kf3 {[%clk 0:00:00]}  Rc4 {[%clk 0:00:00]} 67. Kg3 {[%clk 0:00:00]}  Rc5 {[%clk 0:00:00]} 68. Rd3 {[%clk 0:00:00]}  Rb5 {[%clk 0:00:00]} 69. Kg4 {[%clk 0:00:00]}  Rc5 {[%clk 0:00:00]} 70. Rd2 {[%clk 0:00:00]}  Rc6 {[%clk 0:00:00]} 71. Rd3 {[%clk 0:00:00]}  Rc5 {[%clk 0:00:00]} 72. Rd2 {[%clk 0:00:00]}  Ra5 {[%clk 0:00:00]} 73. Rd3 {[%clk 0:00:00]}  Ra6 {[%clk 0:00:00]} 74. Rd2 {[%clk 0:00:00]}  Rxd6 {[%clk 0:00:00]} 75. Rxd6+ {[%clk 0:00:00]}  Kxd6 {[%clk 0:00:00]} 76. Kxg5 {[%clk 0:00:00]} 1/2-1/2


[Site "https://www.chess.com"]